[Event "Titled Tuesday Blitz May 23 Early 2023"]
[White "Mouhamad, Joachim"]
[Black "Artemenko, Oleg"]
[WhiteFideId "656410"]
[BlackFideId "14201798"]
[WhiteElo "2125"]
[BlackElo "2287"]
[Result "1/2-1/2"]
[Round "11"]
[TimeControl "180+2"]
[Date "2023.05.23"]
[WhiteClock "0:00:17"]
[BlackClock "0:00:13"]

1. e4 {[%clk 0:02:55]}  e5 {[%clk 0:02:59]} 2. Nf3 {[%clk 0:02:54]}  Nc6 {[%clk 0:02:59]} 3. Bb5 {[%clk 0:02:46]}  a6 {[%clk 0:02:58]} 4. Ba4 {[%clk 0:02:45]}  Nf6 {[%clk 0:02:55]} 5. O-O {[%clk 0:02:38]}  d6 {[%clk 0:02:55]} 6. Re1 {[%clk 0:02:23]}  Bd7 {[%clk 0:02:51]} 7. c3 {[%clk 0:02:23]}  g6 {[%clk 0:02:51]} 8. d4 {[%clk 0:02:20]}  Bg7 {[%clk 0:02:51]} 9. h3 {[%clk 0:02:21]}  O-O {[%clk 0:02:51]} 10. Nbd2 {[%clk 0:02:19]}  Qe8 {[%clk 0:02:51]} 11. Bc2 {[%clk 0:02:07]}  Nh5 {[%clk 0:02:49]} 12. Nf1 {[%clk 0:02:02]}  Qc8 {[%clk 0:02:49]} 13. Kh2 {[%clk 0:01:59]}  h6 {[%clk 0:02:46]} 14. Ne3 {[%clk 0:01:55]}  Nf4 {[%clk 0:02:45]} 15. Nd5 {[%clk 0:01:48]}  g5 {[%clk 0:02:36]} 16. Bxf4 {[%clk 0:01:35]}  gxf4 {[%clk 0:02:37]} 17. Ba4 {[%clk 0:01:29]}  b5 {[%clk 0:02:34]} 18. Bc2 {[%clk 0:01:25]}  Kh8 {[%clk 0:02:32]} 19. Nh4 {[%clk 0:01:24]}  exd4 {[%clk 0:02:23]} 20. Qh5 {[%clk 0:01:23]}  dxc3 {[%clk 0:01:31]} 21. bxc3 {[%clk 0:01:23]}  Qd8 {[%clk 0:01:25]} 22. Nf3 {[%clk 0:00:58]}  Ne5 {[%clk 0:01:19]} 23. Nxe5 {[%clk 0:00:43]}  dxe5 {[%clk 0:01:20]} 24. Rad1 {[%clk 0:00:41]}  Rc8 {[%clk 0:00:44]} 25. Bb3 {[%clk 0:00:34]}  Qe8 {[%clk 0:00:33]} 26. Rd3 {[%clk 0:00:29]}  Be6 {[%clk 0:00:30]} 27. g4 {[%clk 0:00:25]}  f6 {[%clk 0:00:27]} 28. Qxe8 {[%clk 0:00:17]}  Rfxe8 {[%clk 0:00:27]} 29. c4 {[%clk 0:00:17]}  c6 {[%clk 0:00:25]} 30. Nb6 {[%clk 0:00:16]}  Rcd8 {[%clk 0:00:24]} 31. Red1 {[%clk 0:00:15]}  Rb8 {[%clk 0:00:20]} 32. Nd7 {[%clk 0:00:14]}  bxc4 {[%clk 0:00:19]} 33. Nxb8 {[%clk 0:00:09]}  cxb3 {[%clk 0:00:18]} 34. Nxc6 {[%clk 0:00:04]}  bxa2 {[%clk 0:00:18]} 35. Ra3 {[%clk 0:00:05]}  Bc4 {[%clk 0:00:16]} 36. Nb4 {[%clk 0:00:04]}  Rb8 {[%clk 0:00:16]} 37. Nxa6 {[%clk 0:00:04]}  Ra8 {[%clk 0:00:15]} 38. Ra1 {[%clk 0:00:02]}  Bf8 {[%clk 0:00:15]} 39. R1xa2 {[%clk 0:00:03]}  Bxa2 {[%clk 0:00:15]} 40. Rxa2 {[%clk 0:00:03]}  Kg7 {[%clk 0:00:15]} 41. Nb4 {[%clk 0:00:04]}  Rb8 {[%clk 0:00:16]} 42. Nd3 {[%clk 0:00:04]}  Rb3 {[%clk 0:00:16]} 43. Ne1 {[%clk 0:00:04]}  Bc5 {[%clk 0:00:16]} 44. Kg2 {[%clk 0:00:04]}  Rb1 {[%clk 0:00:15]} 45. Nf3 {[%clk 0:00:05]}  Kg6 {[%clk 0:00:13]} 46. Nh4+ {[%clk 0:00:05]}  Kg5 {[%clk 0:00:13]} 47. Nf3+ {[%clk 0:00:04]}  Kg6 {[%clk 0:00:12]} 48. Nh4+ {[%clk 0:00:02]}  Kf7 {[%clk 0:00:13]} 49. Nf5 {[%clk 0:00:03]}  Kg6 {[%clk 0:00:10]} 50. Rc2 {[%clk 0:00:02]}  Bd4 {[%clk 0:00:09]} 51. h4 {[%clk 0:00:02]}  f3+ {[%clk 0:00:08]} 52. Kxf3 {[%clk 0:00:02]}  Rb3+ {[%clk 0:00:08]} 53. Kg2 {[%clk 0:00:02]}  h5 {[%clk 0:00:09]} 54. f3 {[%clk 0:00:01]}  hxg4 {[%clk 0:00:10]} 55. fxg4 {[%clk 0:00:02]}  Rb2 {[%clk 0:00:10]} 56. Rxb2 {[%clk 0:00:02]}  Bxb2 {[%clk 0:00:11]} 57. Kf3 {[%clk 0:00:03]}  Bc1 {[%clk 0:00:10]} 58. h5+ {[%clk 0:00:04]}  Kh7 {[%clk 0:00:09]} 59. Kg3 {[%clk 0:00:04]}  Bf4+ {[%clk 0:00:10]} 60. Kh3 {[%clk 0:00:05]}  Kg8 {[%clk 0:00:11]} 61. Kh4 {[%clk 0:00:05]}  Kf7 {[%clk 0:00:12]} 62. h6 {[%clk 0:00:05]}  Kg6 {[%clk 0:00:12]} 63. Kh3 {[%clk 0:00:06]}  Bxh6 {[%clk 0:00:12]} 64. Kg3 {[%clk 0:00:06]}  Bf4+ {[%clk 0:00:12]} 65. Kh4 {[%clk 0:00:07]}  Bg5+ {[%clk 0:00:11]} 66. Kg3 {[%clk 0:00:07]}  Bd2 {[%clk 0:00:12]} 67. Kf3 {[%clk 0:00:08]}  Bf4 {[%clk 0:00:12]} 68. Nd6 {[%clk 0:00:08]}  Kg5 {[%clk 0:00:13]} 69. Nf7+ {[%clk 0:00:08]}  Kh4 {[%clk 0:00:12]} 70. Nd6 {[%clk 0:00:08]}  Bg5 {[%clk 0:00:13]} 71. Ne8 {[%clk 0:00:09]}  Kh3 {[%clk 0:00:14]} 72. Nc7 {[%clk 0:00:10]}  Kh2 {[%clk 0:00:14]} 73. Ne6 {[%clk 0:00:11]}  Kg1 {[%clk 0:00:14]} 74. Ng7 {[%clk 0:00:12]}  Kf1 {[%clk 0:00:12]} 75. Nf5 {[%clk 0:00:12]}  Ke1 {[%clk 0:00:12]} 76. Ne7 {[%clk 0:00:13]}  Kd2 {[%clk 0:00:12]} 77. Nd5 {[%clk 0:00:13]}  Kd3 {[%clk 0:00:13]} 78. Ne7 {[%clk 0:00:14]}  Kd4 {[%clk 0:00:13]} 79. Nf5+ {[%clk 0:00:15]}  Kd3 {[%clk 0:00:13]} 80. Ng7 {[%clk 0:00:16]}  Bf4 {[%clk 0:00:13]} 81. Nf5 {[%clk 0:00:17]}  Bg5 {[%clk 0:00:13]} 82. Ng7 {[%clk 0:00:17]}  Kd4 {[%clk 0:00:12]} 83. Nf5+ {[%clk 0:00:17]}  Kd3 {[%clk 0:00:13]} 1/2-1/2


[Site "https://www.chess.com"]

[Event "Titled Tuesday Blitz May 23 Early 2023"]
[White "Mrudul Dehankar"]
[Black "Kim, Sergey"]
[WhiteFideId "25096990"]
[BlackFideId "13700570"]
[WhiteElo "2139"]
[BlackElo "2556"]
[Result "1/2-1/2"]
[Round "11"]
[TimeControl "180+2"]
[Date "2023.05.23"]
[WhiteClock "0:00:07"]
[BlackClock "0:00:09"]

1. e4 {[%clk 0:02:52]}  e5 {[%clk 0:03:00]} 2. Nf3 {[%clk 0:02:51]}  Nc6 {[%clk 0:03:00]} 3. Bc4 {[%clk 0:02:51]}  Bc5 {[%clk 0:02:59]} 4. d3 {[%clk 0:02:47]}  Nf6 {[%clk 0:02:59]} 5. c3 {[%clk 0:02:47]}  d6 {[%clk 0:02:59]} 6. Nbd2 {[%clk 0:02:46]}  a6 {[%clk 0:02:59]} 7. a4 {[%clk 0:02:45]}  Ba7 {[%clk 0:03:00]} 8. h3 {[%clk 0:02:42]}  O-O {[%clk 0:02:59]} 9. O-O {[%clk 0:02:37]}  Be6 {[%clk 0:02:55]} 10. Re1 {[%clk 0:02:27]}  Nh5 {[%clk 0:02:44]} 11. Nxe5 {[%clk 0:01:48]}  Nxe5 {[%clk 0:02:43]} 12. Qxh5 {[%clk 0:01:44]}  Bxc4 {[%clk 0:02:43]} 13. dxc4 {[%clk 0:01:39]}  Nd3 {[%clk 0:02:43]} 14. Rf1 {[%clk 0:01:39]}  Qf6 {[%clk 0:02:22]} 15. Qf3 {[%clk 0:01:35]}  Qxf3 {[%clk 0:02:18]} 16. Nxf3 {[%clk 0:01:34]}  Rfe8 {[%clk 0:02:14]} 17. Nd2 {[%clk 0:01:26]}  f5 {[%clk 0:02:03]} 18. exf5 {[%clk 0:01:07]}  Re2 {[%clk 0:02:03]} 19. Nf3 {[%clk 0:01:08]}  Nxf2 {[%clk 0:01:55]} 20. Kh2 {[%clk 0:01:07]}  Nd3 {[%clk 0:01:30]} 21. b4 {[%clk 0:01:02]}  Rae8 {[%clk 0:01:06]} 22. Bd2 {[%clk 0:00:52]}  Nb2 {[%clk 0:01:00]} 23. c5 {[%clk 0:00:30]}  dxc5 {[%clk 0:00:57]} 24. Bf4 {[%clk 0:00:29]}  c6 {[%clk 0:00:50]} 25. b5 {[%clk 0:00:18]}  c4 {[%clk 0:00:40]} 26. Ng5 {[%clk 0:00:14]}  Nd3 {[%clk 0:00:35]} 27. Bg3 {[%clk 0:00:14]}  h6 {[%clk 0:00:27]} 28. Ne6 {[%clk 0:00:14]}  Bb6 {[%clk 0:00:19]} 29. a5 {[%clk 0:00:13]}  Bd8 {[%clk 0:00:17]} 30. bxc6 {[%clk 0:00:09]}  bxc6 {[%clk 0:00:18]} 31. Ra4 {[%clk 0:00:09]}  Ne5 {[%clk 0:00:15]} 32. Bxe5 {[%clk 0:00:08]}  Rxe5 {[%clk 0:00:14]} 33. Rxc4 {[%clk 0:00:09]}  Bxa5 {[%clk 0:00:14]} 34. Rxc6 {[%clk 0:00:09]}  Re2 {[%clk 0:00:11]} 35. Rxa6 {[%clk 0:00:07]}  Bxc3 {[%clk 0:00:10]} 36. Rc6 {[%clk 0:00:07]}  Bf6 {[%clk 0:00:10]} 37. Nf4 {[%clk 0:00:05]}  Rd2 {[%clk 0:00:10]} 38. Re6 {[%clk 0:00:05]}  Ra8 {[%clk 0:00:09]} 39. Kh1 {[%clk 0:00:04]}  Raa2 {[%clk 0:00:09]} 40. Rg1 {[%clk 0:00:04]}  Rf2 {[%clk 0:00:07]} 41. Nh5 {[%clk 0:00:04]}  Rxf5 {[%clk 0:00:07]} 42. Nxf6+ {[%clk 0:00:04]}  Rxf6 {[%clk 0:00:07]} 43. Rxf6 {[%clk 0:00:04]}  gxf6 {[%clk 0:00:08]} 44. Rf1 {[%clk 0:00:05]}  Kg7 {[%clk 0:00:08]} 45. Kh2 {[%clk 0:00:05]}  Rb2 {[%clk 0:00:08]} 46. Kg3 {[%clk 0:00:06]}  Kg6 {[%clk 0:00:09]} 47. Rf3 {[%clk 0:00:06]}  Rc2 {[%clk 0:00:08]} 48. Rd3 {[%clk 0:00:06]}  Re2 {[%clk 0:00:08]} 49. Kf3 {[%clk 0:00:06]}  Re5 {[%clk 0:00:09]} 50. Rd4 {[%clk 0:00:06]}  Rf5+ {[%clk 0:00:09]} 51. Kg3 {[%clk 0:00:06]}  Rg5+ {[%clk 0:00:09]} 52. Kf3 {[%clk 0:00:07]}  Rf5+ {[%clk 0:00:09]} 53. Rf4 {[%clk 0:00:07]}  Re5 {[%clk 0:00:09]} 54. Rg4+ {[%clk 0:00:08]}  Rg5 {[%clk 0:00:09]} 55. Re4 {[%clk 0:00:08]}  Rf5+ {[%clk 0:00:09]} 56. Rf4 {[%clk 0:00:07]}  Re5 {[%clk 0:00:09]} 57. Rd4 {[%clk 0:00:07]}  Rf5+ {[%clk 0:00:09]} 1/2-1/2


[Site "https://www.chess.com"]

[Event "Titled Tuesday Blitz May 23 Early 2023"]
[White "Toncheva, Nadya"]
[Black "Hoffmann, Asa"]
[WhiteFideId "2924056"]
[BlackFideId "2001470"]
[WhiteElo "2101"]
[BlackElo "2117"]
[Result "1-0"]
[Round "11"]
[TimeControl "180+2"]
[Date "2023.05.23"]
[WhiteClock "0:00:41"]
[BlackClock "0:00:58"]

1. e4 {[%clk 0:03:00]}  d6 {[%clk 0:02:56]} 2. d4 {[%clk 0:03:00]}  Nf6 {[%clk 0:02:55]} 3. Nc3 {[%clk 0:03:00]}  c6 {[%clk 0:02:54]} 4. Be3 {[%clk 0:02:59]}  Ng4 {[%clk 0:02:54]} 5. Bg5 {[%clk 0:02:56]}  Qb6 {[%clk 0:02:53]} 6. h3 {[%clk 0:02:47]}  Qxb2 {[%clk 0:02:46]} 7. Bd2 {[%clk 0:02:26]}  Nf6 {[%clk 0:02:43]} 8. Rb1 {[%clk 0:02:25]}  Qa3 {[%clk 0:02:43]} 9. Bc4 {[%clk 0:02:02]}  e5 {[%clk 0:02:37]} 10. Nf3 {[%clk 0:01:37]}  Be7 {[%clk 0:02:27]} 11. dxe5 {[%clk 0:01:29]}  dxe5 {[%clk 0:02:21]} 12. Nxe5 {[%clk 0:01:28]}  O-O {[%clk 0:02:21]} 13. Nd3 {[%clk 0:01:22]}  Qa5 {[%clk 0:02:12]} 14. O-O {[%clk 0:01:17]}  Qc7 {[%clk 0:02:09]} 15. Qf3 {[%clk 0:01:13]}  Nbd7 {[%clk 0:02:08]} 16. Bf4 {[%clk 0:01:12]}  Bd6 {[%clk 0:02:03]} 17. Bxd6 {[%clk 0:01:05]}  Qxd6 {[%clk 0:02:03]} 18. Rbd1 {[%clk 0:01:05]}  Qa3 {[%clk 0:01:56]} 19. Ne2 {[%clk 0:01:04]}  Nb6 {[%clk 0:01:53]} 20. Bb3 {[%clk 0:01:03]}  Be6 {[%clk 0:01:50]} 21. Nef4 {[%clk 0:01:00]}  Bxb3 {[%clk 0:01:45]} 22. axb3 {[%clk 0:01:01]}  Rad8 {[%clk 0:01:41]} 23. e5 {[%clk 0:01:01]}  Nfd5 {[%clk 0:01:40]} 24. Qg3 {[%clk 0:00:58]}  Nxf4 {[%clk 0:01:34]} 25. Nxf4 {[%clk 0:00:59]}  Nd5 {[%clk 0:01:33]} 26. Nh5 {[%clk 0:00:57]}  g6 {[%clk 0:01:30]} 27. c4 {[%clk 0:00:56]}  Nc7 {[%clk 0:01:24]} 28. Nf6+ {[%clk 0:00:56]}  Kg7 {[%clk 0:01:24]} 29. Qh4 {[%clk 0:00:47]}  h5 {[%clk 0:01:23]} 30. Qg5 {[%clk 0:00:46]}  Rh8 {[%clk 0:01:12]} 31. Rxd8 {[%clk 0:00:42]}  Rxd8 {[%clk 0:01:11]} 32. Nxh5+ {[%clk 0:00:43]}  Kh7 {[%clk 0:01:09]} 33. Qxd8 {[%clk 0:00:42]}  Ne6 {[%clk 0:00:58]} 34. Nf6+ {[%clk 0:00:41]} 1-0


[Site "https://www.chess.com"]

[Event "Titled Tuesday Blitz May 23 Early 2023"]
[White "surrenderPLS"]
[Black "Kovalevsky, Stanislav"]
[BlackFideId "13508598"]
[WhiteElo "2536"]
[BlackElo "2174"]
[Result "0-1"]
[Round "11"]
[TimeControl "180+2"]
[Date "2023.05.23"]
[WhiteClock "0:01:54"]
[BlackClock "0:02:01"]

1. e4 {[%clk 0:03:00]}  e6 {[%clk 0:02:57]} 2. d4 {[%clk 0:02:58]}  d5 {[%clk 0:02:57]} 3. Nc3 {[%clk 0:02:59]}  dxe4 {[%clk 0:02:57]} 4. Nxe4 {[%clk 0:02:59]}  Nf6 {[%clk 0:02:58]} 5. Nxf6+ {[%clk 0:02:59]}  gxf6 {[%clk 0:02:59]} 6. Nf3 {[%clk 0:02:59]}  Nc6 {[%clk 0:02:59]} 7. Be2 {[%clk 0:03:00]}  Ne7 {[%clk 0:03:00]} 8. O-O {[%clk 0:03:00]}  Bd7 {[%clk 0:03:00]} 9. c4 {[%clk 0:02:59]}  Bc6 {[%clk 0:03:01]} 10. b3 {[%clk 0:02:56]}  Rg8 {[%clk 0:02:59]} 11. Bb2 {[%clk 0:02:56]}  Qd6 {[%clk 0:02:52]} 12. Qc2 {[%clk 0:02:29]}  Qf4 {[%clk 0:02:31]} 13. g3 {[%clk 0:02:15]}  Bxf3 {[%clk 0:02:26]} 14. Bc1 {[%clk 0:02:02]}  Qg4 {[%clk 0:02:04]} 15. h3 {[%clk 0:02:01]}  Qh5 {[%clk 0:02:01]} 16. g4 {[%clk 0:01:54]}  Rxg4+ {[%clk 0:02:01]} 0-1


[Site "https://www.chess.com"]

[Event "Titled Tuesday Blitz May 23 Early 2023"]
[White "Fernandez Siles, Luis"]
[Black "Liu, Casper"]
[WhiteFideId "2209420"]
[BlackFideId "1454153"]
[WhiteElo "2195"]
[BlackElo "2221"]
[Result "1-0"]
[Round "11"]
[TimeControl "180+2"]
[Date "2023.05.23"]
[WhiteClock "0:00:10"]
[BlackClock "0:00:04"]

1. d4 {[%clk 0:03:00]}  c5 {[%clk 0:02:55]} 2. d5 {[%clk 0:02:55]}  g6 {[%clk 0:02:56]} 3. c4 {[%clk 0:02:54]}  Bg7 {[%clk 0:02:56]} 4. e4 {[%clk 0:02:52]}  d6 {[%clk 0:02:56]} 5. f4 {[%clk 0:02:51]}  f5 {[%clk 0:02:56]} 6. exf5 {[%clk 0:02:48]}  Bxf5 {[%clk 0:02:56]} 7. Bd3 {[%clk 0:02:48]}  Nf6 {[%clk 0:02:54]} 8. Nc3 {[%clk 0:02:37]}  O-O {[%clk 0:02:52]} 9. Nf3 {[%clk 0:02:36]}  Bg4 {[%clk 0:02:49]} 10. h3 {[%clk 0:02:32]}  Bxf3 {[%clk 0:02:49]} 11. Qxf3 {[%clk 0:02:33]}  Nfd7 {[%clk 0:02:39]} 12. Qg4 {[%clk 0:02:18]}  Bd4 {[%clk 0:02:26]} 13. Bd2 {[%clk 0:02:09]}  Nf6 {[%clk 0:02:20]} 14. Qe6+ {[%clk 0:02:03]}  Kg7 {[%clk 0:02:20]} 15. O-O-O {[%clk 0:01:42]}  Nbd7 {[%clk 0:02:09]} 16. g4 {[%clk 0:01:38]}  Rf7 {[%clk 0:02:06]} 17. h4 {[%clk 0:01:34]}  Nf8 {[%clk 0:02:01]} 18. Qe2 {[%clk 0:01:33]}  b5 {[%clk 0:01:58]} 19. h5 {[%clk 0:01:29]}  Qa5 {[%clk 0:01:41]} 20. hxg6 {[%clk 0:01:16]}  Nxg6 {[%clk 0:01:30]} 21. g5 {[%clk 0:01:07]}  Nd7 {[%clk 0:01:21]} 22. Rxh7+ {[%clk 0:01:02]}  Kxh7 {[%clk 0:01:18]} 23. Qh5+ {[%clk 0:00:59]}  Kg8 {[%clk 0:01:18]} 24. Qxg6+ {[%clk 0:00:55]}  Bg7 {[%clk 0:01:16]} 25. Rh1 {[%clk 0:00:47]}  Nf8 {[%clk 0:00:56]} 26. Rh8+ {[%clk 0:00:32]}  Kxh8 {[%clk 0:00:55]} 27. Qxf7 {[%clk 0:00:33]}  b4 {[%clk 0:00:51]} 28. Ne4 {[%clk 0:00:17]}  Qxa2 {[%clk 0:00:52]} 29. Nf6 {[%clk 0:00:17]}  exf6 {[%clk 0:00:17]} 30. gxf6 {[%clk 0:00:18]}  Qa1+ {[%clk 0:00:16]} 31. Bb1 {[%clk 0:00:17]}  Bh6 {[%clk 0:00:05]} 32. Qh5 {[%clk 0:00:16]}  Qa6 {[%clk 0:00:03]} 33. Qxh6+ {[%clk 0:00:10]}  Kg8 {[%clk 0:00:04]} 34. Qg7# {[%clk 0:00:10]} 1-0


[Site "https://www.chess.com"]

[Event "Titled Tuesday Blitz May 23 Early 2023"]
[White "Herzog2012"]
[Black "Berezin, Viktor"]
[BlackFideId "14107872"]
[WhiteElo "2378"]
[BlackElo "2310"]
[Result "1-0"]
[Round "11"]
[TimeControl "180+2"]
[Date "2023.05.23"]
[WhiteClock "0:00:04"]
[BlackClock "0:00:01"]

1. e4 {[%clk 0:03:00]}  g6 {[%clk 0:02:56]} 2. d4 {[%clk 0:03:00]}  Bg7 {[%clk 0:02:55]} 3. Nc3 {[%clk 0:03:01]}  c6 {[%clk 0:02:54]} 4. Nf3 {[%clk 0:02:59]}  d5 {[%clk 0:02:54]} 5. h3 {[%clk 0:02:59]}  dxe4 {[%clk 0:02:54]} 6. Nxe4 {[%clk 0:03:00]}  Nf6 {[%clk 0:02:54]} 7. Nxf6+ {[%clk 0:02:58]}  exf6 {[%clk 0:02:55]} 8. c3 {[%clk 0:02:55]}  O-O {[%clk 0:02:54]} 9. Bd3 {[%clk 0:02:54]}  a5 {[%clk 0:02:54]} 10. O-O {[%clk 0:02:53]}  a4 {[%clk 0:02:54]} 11. a3 {[%clk 0:02:41]}  Be6 {[%clk 0:02:47]} 12. Bc2 {[%clk 0:02:41]}  b5 {[%clk 0:02:46]} 13. Re1 {[%clk 0:02:39]}  Nd7 {[%clk 0:02:46]} 14. Bf4 {[%clk 0:02:29]}  Nb6 {[%clk 0:02:45]} 15. Qc1 {[%clk 0:02:29]}  Re8 {[%clk 0:02:42]} 16. Bh6 {[%clk 0:02:26]}  Bh8 {[%clk 0:02:42]} 17. Nd2 {[%clk 0:02:22]}  Bd5 {[%clk 0:02:18]} 18. Rxe8+ {[%clk 0:02:16]}  Qxe8 {[%clk 0:02:19]} 19. Qe1 {[%clk 0:02:15]}  Qd7 {[%clk 0:02:17]} 20. Qe2 {[%clk 0:02:10]}  Re8 {[%clk 0:02:15]} 21. Qf1 {[%clk 0:01:59]}  Bg7 {[%clk 0:01:59]} 22. Bxg7 {[%clk 0:01:55]}  Kxg7 {[%clk 0:02:00]} 23. Re1 {[%clk 0:01:55]}  Nc4 {[%clk 0:01:56]} 24. Rxe8 {[%clk 0:01:47]}  Qxe8 {[%clk 0:01:48]} 25. Nxc4 {[%clk 0:01:39]}  Bxc4 {[%clk 0:01:49]} 26. Qd1 {[%clk 0:01:29]}  Qe6 {[%clk 0:01:42]} 27. Qd2 {[%clk 0:01:28]}  h5 {[%clk 0:01:40]} 28. Qe3 {[%clk 0:01:28]}  Qd6 {[%clk 0:01:37]} 29. Be4 {[%clk 0:01:25]}  Be6 {[%clk 0:01:34]} 30. Qg3 {[%clk 0:01:09]}  Qxg3 {[%clk 0:00:57]} 31. fxg3 {[%clk 0:01:10]}  Bd5 {[%clk 0:00:57]} 32. Bf3 {[%clk 0:01:06]}  Kf8 {[%clk 0:00:53]} 33. Kf2 {[%clk 0:01:03]}  Ke7 {[%clk 0:00:52]} 34. Ke3 {[%clk 0:01:02]}  Kd6 {[%clk 0:00:53]} 35. Kd3 {[%clk 0:00:21]}  Bxf3 {[%clk 0:00:26]} 36. gxf3 {[%clk 0:00:22]}  Kd5 {[%clk 0:00:27]} 37. f4 {[%clk 0:00:21]}  f5 {[%clk 0:00:20]} 38. h4 {[%clk 0:00:12]}  f6 {[%clk 0:00:20]} 39. Ke3 {[%clk 0:00:13]}  Kc4 {[%clk 0:00:20]} 40. Kd2 {[%clk 0:00:13]}  Kb3 {[%clk 0:00:20]} 41. Kc1 {[%clk 0:00:13]}  Kc4 {[%clk 0:00:19]} 42. Kc2 {[%clk 0:00:13]}  c5 {[%clk 0:00:14]} 43. dxc5 {[%clk 0:00:13]}  Kxc5 {[%clk 0:00:15]} 44. Kd3 {[%clk 0:00:13]}  Kd5 {[%clk 0:00:16]} 45. Ke3 {[%clk 0:00:13]}  Kc4 {[%clk 0:00:16]} 46. Kd2 {[%clk 0:00:13]}  Kb3 {[%clk 0:00:15]} 47. Kc1 {[%clk 0:00:13]}  Kc4 {[%clk 0:00:14]} 48. Kc2 {[%clk 0:00:13]}  Kc5 {[%clk 0:00:13]} 49. b3 {[%clk 0:00:04]}  Kd5 {[%clk 0:00:10]} 50. c4+ {[%clk 0:00:02]}  Kc5 {[%clk 0:00:10]} 51. cxb5 {[%clk 0:00:02]}  Kxb5 {[%clk 0:00:10]} 52. bxa4+ {[%clk 0:00:02]}  Kxa4 {[%clk 0:00:10]} 53. Kb2 {[%clk 0:00:02]}  g5 {[%clk 0:00:09]} 54. fxg5 {[%clk 0:00:02]}  fxg5 {[%clk 0:00:08]} 55. hxg5 {[%clk 0:00:03]}  f4 {[%clk 0:00:09]} 56. g6 {[%clk 0:00:01]}  f3 {[%clk 0:00:08]} 57. g7 {[%clk 0:00:02]}  f2 {[%clk 0:00:08]} 58. g8=Q {[%clk 0:00:03]}  f1=Q {[%clk 0:00:09]} 59. Qa8+ {[%clk 0:00:03]}  Kb5 {[%clk 0:00:08]} 60. Qd5+ {[%clk 0:00:03]}  Kb6 {[%clk 0:00:08]} 61. Qd6+ {[%clk 0:00:03]}  Kb7 {[%clk 0:00:08]} 62. Qd7+ {[%clk 0:00:03]}  Kb6 {[%clk 0:00:08]} 63. Qd6+ {[%clk 0:00:03]}  Kb7 {[%clk 0:00:08]} 64. Qe7+ {[%clk 0:00:03]}  Kb6 {[%clk 0:00:08]} 65. Qe6+ {[%clk 0:00:04]}  Kb7 {[%clk 0:00:08]} 66. Qe7+ {[%clk 0:00:04]}  Kb6 {[%clk 0:00:08]} 67. Qg5 {[%clk 0:00:04]}  Qe2+ {[%clk 0:00:08]} 68. Kc3 {[%clk 0:00:04]}  Qf3+ {[%clk 0:00:08]} 69. Kd4 {[%clk 0:00:03]}  Qxa3 {[%clk 0:00:07]} 70. Ke4 {[%clk 0:00:03]}  Qb4+ {[%clk 0:00:07]} 71. Kf5 {[%clk 0:00:03]}  Qc5+ {[%clk 0:00:06]} 72. Kg6 {[%clk 0:00:03]}  Qc2+ {[%clk 0:00:05]} 73. Kxh5 {[%clk 0:00:02]}  Qd1+ {[%clk 0:00:05]} 74. Qg4 {[%clk 0:00:02]}  Qh1+ {[%clk 0:00:06]} 75. Kg5 {[%clk 0:00:02]}  Qd5+ {[%clk 0:00:06]} 76. Qf5 {[%clk 0:00:02]}  Qd2+ {[%clk 0:00:06]} 77. Kg4 {[%clk 0:00:02]}  Qd1+ {[%clk 0:00:05]} 78. Kh4 {[%clk 0:00:02]}  Qh1+ {[%clk 0:00:05]} 79. Kg5 {[%clk 0:00:03]}  Qc1+ {[%clk 0:00:05]} 80. Kg6 {[%clk 0:00:03]}  Kc7 {[%clk 0:00:02]} 81. g4 {[%clk 0:00:03]}  Kd8 {[%clk 0:00:02]} 82. g5 {[%clk 0:00:02]}  Qc6+ {[%clk 0:00:01]} 83. Qf6+ {[%clk 0:00:02]}  Kd7 {[%clk 0:00:02]} 84. Qxc6+ {[%clk 0:00:02]}  Kxc6 {[%clk 0:00:02]} 85. Kf7 {[%clk 0:00:03]}  Kd7 {[%clk 0:00:01]} 86. g6 {[%clk 0:00:04]} 1-0


[Site "https://www.chess.com"]

[Event "Titled Tuesday Blitz May 23 Early 2023"]
[White "Andreev, Konstantin"]
[Black "Todorovic, Bojan"]
[WhiteFideId "24239305"]
[BlackFideId "917087"]
[WhiteElo "2106"]
[BlackElo "2266"]
[Result "0-1"]
[Round "11"]
[TimeControl "180+2"]
[Date "2023.05.23"]
[WhiteClock "0:00:12"]
[BlackClock "0:00:31"]

1. e4 {[%clk 0:03:00]}  g6 {[%clk 0:02:59]} 2. d4 {[%clk 0:02:59]}  Bg7 {[%clk 0:02:58]} 3. Nc3 {[%clk 0:03:00]}  d6 {[%clk 0:02:58]} 4. h4 {[%clk 0:02:59]}  Nf6 {[%clk 0:02:56]} 5. f3 {[%clk 0:02:56]}  e5 {[%clk 0:02:45]} 6. Be3 {[%clk 0:02:54]}  exd4 {[%clk 0:02:41]} 7. Bxd4 {[%clk 0:02:54]}  Nc6 {[%clk 0:02:41]} 8. Be3 {[%clk 0:02:53]}  O-O {[%clk 0:02:34]} 9. Qd2 {[%clk 0:02:53]}  Be6 {[%clk 0:02:12]} 10. O-O-O {[%clk 0:02:50]}  Qe7 {[%clk 0:01:49]} 11. Kb1 {[%clk 0:02:42]}  d5 {[%clk 0:01:44]} 12. Nxd5 {[%clk 0:02:18]}  Bxd5 {[%clk 0:01:43]} 13. exd5 {[%clk 0:02:17]}  Nxd5 {[%clk 0:01:43]} 14. Bh6 {[%clk 0:02:16]}  Bc3 {[%clk 0:01:04]} 15. Qxd5 {[%clk 0:02:08]}  Rad8 {[%clk 0:01:01]} 16. bxc3 {[%clk 0:01:33]}  Rxd5 {[%clk 0:00:58]} 17. Rxd5 {[%clk 0:01:34]}  Qe1+ {[%clk 0:00:54]} 18. Kb2 {[%clk 0:01:33]}  Qxf1 {[%clk 0:00:54]} 19. Bxf8 {[%clk 0:01:33]}  Qxg2 {[%clk 0:00:53]} 20. Rh3 {[%clk 0:01:29]}  Qxg1 {[%clk 0:00:53]} 21. f4 {[%clk 0:00:32]}  Kxf8 {[%clk 0:00:51]} 22. Rd7 {[%clk 0:00:28]}  Na5 {[%clk 0:00:43]} 23. Rhd3 {[%clk 0:00:22]}  Nc4+ {[%clk 0:00:41]} 24. Kb3 {[%clk 0:00:21]}  b5 {[%clk 0:00:41]} 25. Kb4 {[%clk 0:00:17]}  c6 {[%clk 0:00:34]} 26. Rc7 {[%clk 0:00:12]}  a5+ {[%clk 0:00:32]} 27. Kb3 {[%clk 0:00:12]}  Qb1# {[%clk 0:00:31]} 0-1


[Site "https://www.chess.com"]